{"text_format":"1","workbook":"xlsx","n_sheets":2,"sheets":["Feuil1","Liste"],"not_rendered":{"charts":0,"images":6,"macros":1,"external_links":0,"defined_names":7,"comments":0,"pivot_tables":0},"unopened":[],"bounds":{"document_bytes":16777216,"sheet_cells":100000,"rows_first":2000,"rows_last":500,"rows_between":2000,"halvings":0,"cell_chars":16384,"cell_head_chars":4096},"cells_cut":0,"cells_raw":0,"read":"whole","date_system":"1900"}

{"sheet":"Feuil1","index":0,"n_rows":41,"n_cols":21,"rows_kept":41,"cut":false,"hidden":false,"merged":[[29,3,29,4],[1,0,1,11],[17,7,17,8],[19,7,19,8],[2,0,3,0]]}
[null,null,null,null,null,null,null,null,null,null,null,null,null,null,null,null,null,null,null,null,3]
[]
[null,"Cliquez sur l'intru !"]
[]
[89,{"$f":"VLOOKUP($A5,Intrus,2)","v":"sandales"},null,{"$f":"VLOOKUP($A5,Intrus,3)","v":"parasol"},null,{"$f":"VLOOKUP($A5,Intrus,4)","v":"transat"},null,{"$f":"VLOOKUP($A5,Intrus,5)","v":"plage"},null,{"$f":"VLOOKUP($A5,Intrus,6)","v":"pelle"},null,null,{"$f":"VLOOKUP(A5,Intrus,7)","v":5},{"$f":"VLOOKUP(A5,Intrus,8)","v":"Fait penser au travail, pas aux vacances"},null,{"$f":"IF(M5=0,FALSE,IF(O5=M5,TRUE,FALSE))","v":false},{"$f":"IF(O5=0,0,IF(P5=TRUE,2,1))","v":0}]
[]
[67,{"$f":"VLOOKUP($A7,Intrus,2)","v":"charpentier"},null,{"$f":"VLOOKUP($A7,Intrus,3)","v":"menuisier"},null,{"$f":"VLOOKUP($A7,Intrus,4)","v":"ébéniste"},null,{"$f":"VLOOKUP($A7,Intrus,5)","v":"bûcheron"},null,{"$f":"VLOOKUP($A7,Intrus,6)","v":"serrurier"},null,null,{"$f":"VLOOKUP(A7,Intrus,7)","v":5},{"$f":"VLOOKUP(A7,Intrus,8)","v":"Pas lié au bois"},null,{"$f":"IF(M7=0,FALSE,IF(O7=M7,TRUE,FALSE))","v":false},{"$f":"IF(O7=0,0,IF(P7=TRUE,2,1))","v":0}]
[]
[73,{"$f":"VLOOKUP($A9,Intrus,2)","v":"astreindre"},null,{"$f":"VLOOKUP($A9,Intrus,3)","v":"contraindre"},null,{"$f":"VLOOKUP($A9,Intrus,4)","v":"provoquer"},null,{"$f":"VLOOKUP($A9,Intrus,5)","v":"forcer"},null,{"$f":"VLOOKUP($A9,Intrus,6)","v":"obliger"},null,null,{"$f":"VLOOKUP(A9,Intrus,7)","v":3},{"$f":"VLOOKUP(A9,Intrus,8)","v":"Pas imposant"},null,false,0]
[]
[37,{"$f":"VLOOKUP($A11,Intrus,2)","v":"aluminium"},null,{"$f":"VLOOKUP($A11,Intrus,3)","v":"magnésium"},null,{"$f":"VLOOKUP($A11,Intrus,4)","v":"sodium"},null,{"$f":"VLOOKUP($A11,Intrus,5)","v":"zinc"},null,{"$f":"VLOOKUP($A11,Intrus,6)","v":"plomb"},null,null,{"$f":"VLOOKUP(A11,Intrus,7)","v":3},{"$f":"VLOOKUP(A11,Intrus,8)","v":"Métal de densité 0.97, il flotte !"},null,false,0]
[]
[38,{"$f":"VLOOKUP($A13,Intrus,2)","v":"verglas"},null,{"$f":"VLOOKUP($A13,Intrus,3)","v":"givre"},null,{"$f":"VLOOKUP($A13,Intrus,4)","v":"buée"},null,{"$f":"VLOOKUP($A13,Intrus,5)","v":"neige"},null,{"$f":"VLOOKUP($A13,Intrus,6)","v":"grésil"},null,null,{"$f":"VLOOKUP(A13,Intrus,7)","v":3},{"$f":"VLOOKUP(A13,Intrus,8)","v":"Seul à l'état liquide"},null,false,0]
[null,null,null,null,null,null,null,null,null,null,null,null,null,null,null,{"$f":"COUNTIF(P5:P13,TRUE)","v":0},"total de cette série"]
[null,null,null,null,null,null,null,null,null,null,null,null,null,null,null,0,"ancien total"]
[null,1,null,null,null,null,null,null,null,null,null,null,null,null,null,{"$f":"SUM(S17:S18)","v":2},"choix pour corrigé"]
[null,null,null,null,null,null,null,null,null,null,null,null,null,null,null,false,"Choix réponses",null,{"$f":"IF(P17=TRUE,2,0)","v":0}]
[null,null,null,null,null,null,null,{"$f":"P14","v":0},null,{"$f":"IF(H18<2,\"bonne réponse\",\"bonnes réponses\")","v":"bonne réponse"},null,"Total",{"$f":"P15+H18","v":0},null,null,false,"Choix Indices",null,{"$f":"IF(P18=TRUE,1,2)","v":2}]
[null,null,null,null,null,null,null,null,null,null,null,null,null,null,null,1,"Choix radio"]
[null,null,null,null,null,null,null,1,null,"e série",null,null,null,null,null,false,"Choix sans corriger"]
[null,null,null,null,null,null,null,null,null,{"$f":"IF(H20>=INT(Liste!A2/5),\"Séries terminées !\",\"\")","v":""}]
[null,null,null,null,null,null,null,null,null,{"$f":"IF(P19=1,\"\",IF(A5>=Liste!A2-4,\"Séries terminées !\",\"\"))","v":""}]
[]
[]
[null,{"$f":"INT(Liste!A2/5) &\" séries\"","v":"25 séries"}]
[]
[]
[]
[null,null,null,null,null,{"$f":"IF(F30>0,\"Tirez une nouvelle série !\",\"\")","v":""}]
[null,null,null,{"$f":"IF(P19=2,\"A partir de la question :\",\"\")","v":""},null,0]
[]
[null,null,null,"1 à 12",null,"droit"]
[null,null,null,"13 à 25",null,"math"]
[null,null,null,"26 à 58",null,"sciences"]
[null,null,null,"59 à 64",null,"géo"]
[null,null,null,"65 à 92",null,"humain"]
[null,null,null,"93 à 125",null,"divers"]
[]
[]
[]
[null,"© Yvan Péguiron - avril 2026"]

{"sheet":"Liste","index":1,"n_rows":129,"n_cols":15,"rows_kept":129,"cut":false,"hidden":false,"merged":[[0,8,1,14],[0,7,1,7],[0,6,1,6],[0,0,0,3]]}
["La colonne A doit être numérotée de 1 à 105",null,null,null,null,null,"Intru","Indices","No ou info. pour tris personnels"]
[{"$f":"COUNTA(B3:B127)","v":125},"Nombre d'intrus"]
[1,"famille","successions","réels","personnes","sociétés",5,"N'est pas un titre du code civil",72,1,{"$f":"VLOOKUP(J3,$N$4:$O$10,2)","v":"droit"}]
[2,"tutelle","tutoriel","curatelle","conseil légal","interdiction",2,"N'est pas une mesure tutélaire",73,1,{"$f":"VLOOKUP(J4,$N$4:$O$10,2)","v":"droit"},null,null,1,"droit"]
[3,"mauvaise gestion","prodigalité","ivrognerie","négligence","inconduite",4,"N'est pas une cause d'interdicition",74,1,"droit",null,null,2,"math"]
[4,"nom","profession","parenté","origine","domicile",2,"N'est pas un élément de l'état civil d'une personne",75,1,"droit",null,null,3,"sciences"]
[5,"CD","CO","CR","CC","CP",1,"N'est pas l'abréviation d'un code suisse",76,1,"droit",null,null,4,"géo"]
[6,"droit des personnes","droit de la famille","droit des successions","droit pénal","droit des obligations",4,"Fait partie du droit public et non privé",77,1,"droit",null,null,5,"humain"]
[7,"lois","jurisprudence","autorité","coutume","doctrine",3,"N'est pas une source du droit",78,1,"droit",null,null,6,"divers"]
[8,"législatif","financier","exécutif","judiciaire","constituant",2,"N'est pas un pouvoir politique",79,1,"droit",null,null,7]
[9,"Conseil national","Grand Conseil","Tribunal cantonal","Conseil d'Etat","Peuple",1,"Est une autorité fédérale",80,1,"droit"]
[10,"impôt sur les chiens","imp. / bière","impôt foncier","Imp. / divertissements","Imp. / véhicules",2,"Est un impôt fédéral",81,1,"droit"]
[11,"droit de vote","droit d'éligibilité","droit de cité","droit d'élection","droit de référendum",3,"N'est pas un droit politique",82,1,"droit"]
[12,"La donation","le bail à loyer","la commission","la société simple","les personnes morales",5,"Un des titres du CC et non CO",116,1,"droit"]
[13,"34,2","342 / 10","34 + 2/10","3 + 42/10","30 + 42/10",4," = 7,2",59,2,"math"]
[14,"807 /10","8 + 70/100","80,7","80 + 7/10","80,70",2," = 8,7",60,2,"math"]
[15,"12.5 dam","125 dm","12500 mm","0,125 hm","1250 cm",1,"12,5 m = 1,25 dam !",61,2,"math"]
[16,90,110,130,150,180,5,"suite de 90 + 20 +20 +20…",62,2,"math"]
[17,67,47,37,27,17,4,"27 n'est pas un nmbre premier",63,2,"math"]
[18,"giga","yotta","nano","kilo","méga",3,"Préfixe pour des valeurs plus petites que l'unité (10 ^ -9)",64,2,"math"]
[19,121,33,242,572,336,5,"N'est pas un multiple de 11",65,2,"math"]
[20,63,96,32,24,18,3,"N'est pas un multiple de 3",66,2,"math"]
[21,767,77,66,676,716,5,"Ne contient pas que des \"\"7\" et des \"6\"",67,2,"math"]
[22,43,35,71,26,80,1,"La somme des chiffres ne fait pas 8",68,2,"math"]
[23,"1.2347…","5.4327…","2.15156…","3.141592…","4.141592…",4,"Chiffre que tout le monde connaît (Pi)",69,2,"math"]
[24,16,58,36,25,49,2,"N'est pas un carré parfait",70,2,"math"]
[25,38,52,65,78,91,1,"N'est pas multiple de 13",117,2,"math"]
[26,"écureuil","pie","singe","paresseux","panda",2,"Seul qui vole",3,3,"sciences"]
[27,"dictionnaire","roman","Donjon dragon","BD ","bible",3,"Seul livre de jeu",8,3,"sciences"]
[28,"trapèze","triangle","rectangle","parallélogramme","losange",2,"N'a pas 4 côtés",14,3,"sciences"]
[29,"diamant","aluminium","zing","argent","plomb",1,"N'est pas un métal",20,3,"sciences"]
[30,"sapin","mélèze","bouleau","if","pin",3,"N'est pas un conifère",24,3,"sciences"]
[31,"myrtille","groseille","framboise","pêche","cassis",4,"Fruit à noyau",25,3,"sciences"]
[32,"merle","pie","mouette","moineau","mésange",3,"Oiseau marin",26,3,"sciences"]
[33,"luire","étinceler","irradier","miroiter","brûler",3,"Ne scintille pas",42,3,"sciences"]
[34,"rouge ","vert","bleu","jaune"," ",4,"N'est pas une couleur primaire",43,3,"sciences"]
[35,"crème glacée","fromage","lait","beurre","yaourt",3,"Les autres sont faits à partir de lui !",50,3,"sciences"]
[36,"écureuil","aigle","nuage","lune","avion",1,"Ne peut être vu dans le ciel",52,3,"sciences"]
[37,"aluminium","magnésium","sodium","zinc","plomb",3,"Métal de densité 0.97, il flotte !",54,3,"sciences"]
[38,"verglas","givre","buée","neige","grésil",3,"Seul à l'état liquide",55,3,"sciences"]
[39,"pluie","brouillard","bruine","brume","vapeur",5,"Seul à l'état gazeux",56,3,"sciences"]
[40,"brume","verglas","brouillard","ondée","rosée",2,"Seul à l'état solide",57,3,"sciences"]
[41,"iceberg","glacier","banquise","mer du Groenland","calotte glaciaire",4,"Seul à l'état liquide",58,3,"sciences"]
[42,"nez","groin","truffe","narine","museau",4,"Partie d'un organe de l'odorat",88,3,"sciences"]
[43,"frotter","luire","briller","étinceler","rayonner",1,"Peut illuminer après beaucoup d'efforts",90,3,"sciences"]
[44,"trouble","peureux","boueux","vaseux","fangeux",2,"Ne s'applique pas à un liquide stagnant",92,3,"sciences"]
[45,"phoque","baleine","dauphin","orque","cachalot",1,"N'est pas un cétacé",97,3,"sciences"]
[46,"tachéomètre","anémomètre","girouette","pluviomètre","thermomètre",1,"N'est pas un instrument de météorologie",99,3,"sciences"]
[47,"sablier","réveil","montre","tachymètre","chronomètre",4,"Indique une vitesse de rotation",100,3,"sciences"]
[48,"chouette","alouette","hibou","chauve-souris","grive",4,"N'est pas un oiseau, mais un mammifère",103,3,"sciences"]
[49,"chêne","vigne","érable","marronnier","platane",1,"Ses feuilles ne sont pas palmées",104,3,"sciences"]
[50,"épagneul","border-collie","braque","setter","teckel",2,"N'est pas un chien de chasse",105,3,"sciences"]
[51,"lion","plume","poule","canard","serpent",2,"N'est pas un animal",111,3,"sciences"]
[52,"tigre","guépard","chat","lion","panda",5,"N'est pas un félin, mais un ursidé",112,3,"sciences"]
[53,"chacal","loup","coyote","chien","hyène",5,"N'est pas un canidé",113,3,"sciences"]
[54,"insectivore","insecticide","désinfectant","poison","antiparasitaire",1,"Il aime les insectes",115,3,"sciences"]
[55,"cirrus","cumulus","stratus","astrostatus","cumulonimbus",4,"N'est pas une espèce de nuage",118,3,"sciences"]
[56,"A","B2","B15","C","D",3,"N'est pas une vitamine",119,3,"sciences"]
[57,"abricot","cerise","coing","pêche ","datte",3,"N'est pas un fruit à noyau, mais à pépins",121,3,"sciences"]
[58,"jonquille","iris","jacinthe","myosotis","pervenche",1,"N'est pas une fleur bleue",122,3,"sciences"]
[59,"Chinois","Anglais","Français","Espagnol","Croate",1,"Pas d’origine sur le continent américain ou européen",9,4,"géo"]
[60,"Titicaca","Victoria","Elizabeth","Niagara","Iguassu",1,"N'est pas une chute d'eau",46,4,"géo"]
[61,"Rome","Berlin","Tokyo","New York","Bogota",4,"N'est pas une capitale",47,4,"géo"]
[62,"Asie","Australie","Afrique","Europe","Antarctique",2,"N'est pas un continent",48,4,"géo"]
[63,"Suisse","Canada","France","Burkina Faso","Brésil",5,"Le français n'y est pas une langue officielle",109,4,"géo"]
[64,"Berne","Fribourg","Grisons","Vaud","Valais",4,"N'est pas un canton bi ou trilingue",124,4,"géo"]
[65,"bras","nez","langue","jambe ","tête",3,"N’a pas de poils  ",10,5,"humain"]
[66,"dormir","sauter","grimper","marcher","courir",1,"Sans mouvement",15,5,{"$f":"VLOOKUP(J68,$N$4:$O$10,2)","v":"humain"}]
[67,"charpentier","menuisier","ébéniste","bûcheron","serrurier",5,"Pas lié au bois",23,5,"humain"]
[68,"examiner","questionner","répondre","interroger","demander",3,"Pas interrogatif",29,5,"humain"]
[69,"ahuri","stupéfait","étonné","perplexe","précis",5,"N'évoque pas la surprise",31,5,"humain"]
[70,"isolé","veuf","célibataire","unique","jumeau",5,"N'est pas seul",32,5,"humain"]
[71,"instruit","ignare","cultivé","savant","érudit",2,"Antonyme de la liste",33,5,"humain"]
[72,"heureux","déçu","jaloux","fatigué","amoureux",4,"N'est pas un sentiment",38,5,"humain"]
[73,"astreindre","contraindre","provoquer","forcer","obliger",3,"Pas imposant",39,5,"humain"]
[74,"extraire","enlever","extirper","rétorquer","ôter",4,"Ne retire rien",40,5,"humain"]
[75,"inquiétant","éprouvant","terrifiant","scandalisant","effrayant",4,"N'inspire pas la peur",41,5,"humain"]
[76,"Céline","Camus","Constant","Hugo","Colette",5,"Seule femme écrivain",49,5,"humain"]
[77,"yeux pour voir","dents pour manger","oreilles pour entendre","main pour toucher","nez pour sentir",2,"Ne permet pas d'exercer nos 5 sens !",51,5,"humain"]
[78,"enfant","bambin","jouvenceau","gamin","gosse",3,"C'est déjà un adolescent",83,5,"humain"]
[79,"dormir","veiller","pioncer","roupiller","reposer",2,"État de vigilance",84,5,"humain"]
[80,"justesse","tristesse","précision","exactitude","rigueur",2,"État affectif",85,5,"humain"]
[81,"intensifier","divulguer","publier","dévoiler","annoncer",1,"N'est pas de la communication",86,5,"humain"]
[82,"difficile","ardu","douteux","dur","compliqué",3,"N'implique pas une notion d'effort",87,5,"humain"]
[83,"marcher","cheminer","dévoiler","avancer","poursuivre",3,"N'implique pas de déplacement",89,5,"humain"]
[84,"demander","réclamer","implorer","solliciter","pleurer",5,"N'est pas une requête",91,5,"humain"]
[85,"maison","habitation","demeure","auberge","chaumière",4,"On ne fait qu'y passer",93,5,"humain"]
[86,"espoir","attente","promesse","désir","aspiration",5,"Demande du souffle",94,5,"humain"]
[87,"ancien","vétéran","bleu","doyen","briscard",3,"N'est pas si vieux",95,5,"humain"]
[88,"se dépêcher","se hâter","se presser","musarder","courir",4,"Quand on a le temps",96,5,"humain"]
[89,"sandales","parasol","transat","plage","pelle",5,"Fait penser au travail, pas aux vacances",98,5,"humain"]
[90,"ciseaux","lime","peigne","brosse","sèche-cheveux",2,"La coiffeuse l'utilise peu",101,5,"humain"]
[91,"marié","veuf","célibataire","divorcé","séparé",1,"Est uni",106,5,"humain"]
[92,"Hugo","Voltaire","Balzac","Flaubert","Zola",2,"N'est pas un auteur du XIXe siècle",123,5,"humain"]
[93,"carotte","épinard","vinaigrette","casserole","orange",4,"Pas mangeable ",1,6,"divers"]
[94,"auto","avion","trotinette","tracteur","cheval",2,"Seul qui vole",2,6,"divers"]
[95,"hot-dog ","tarte aux pommes","pâté chinois","tourtière ","bolognaise",2,"Pas de viande ",4,6,"divers"]
[96,"clavier","mémoire","TV","souris ","écran",3,"Pas rapport avec ordinateur",5,6,"divers"]
[97,"nounours","livre de conte","poupée","Lego ","train électrique",2,"Le seul qu’il faut lire ",6,6,"divers"]
[98,"crayon","règle","effaceur","compas ","feutre",4,"Le seul qui a deux «branches» ",7,6,"divers"]
[99,"timbre","étiquette","enveloppe","carte postale","postit",4,"Ne colle pas «automatiquement»",11,6,"divers"]
[100,"chemise","manteau","robe","pantalon  ","polo",2,"Le seul qui se met par-dessus les autres  ",12,6,"divers"]
[101,"bonnet","foulard","casquette","chaussette","cagoule",4,"Pas pour la tête",13,6,"divers"]
[102,"dompteur","clown","acteur","trapéziste","jongleur",3,"N'est pas du cirque",16,6,"divers"]
[103,"chaussée","trottoir","piste cyclable","piéton","route",4,"Ne sert pas à la circulation",17,6,"divers"]
[104,"écurie","remise","étable","bergerie","porcherie",2,"Pas destiné aux animaux",18,6,"divers"]
[105,"armoire","table","buffet","commode","tiroire",2,"Ne peut rien contenir",19,6,"divers"]
[106,"football","rugby","course","basketball","tennis",3,"Se pratique sans balle",21,6,"divers"]
[107,"musique","voile","peinture","sculpture","gravure",2,"Seul sport",22,6,"divers"]
[108,"violon","flûte","guitare","contrebasse","harpe",2,"N'est pas à cordes",27,6,"divers"]
[109,"torche","flambeau","chandelle","foyer","lampion",4,"Ne se déplace pas",28,6,"divers"]
[110,"quotidien","spécial","hebdomadaire","mensuel","biennal",2,"Pas périodique",30,6,"divers"]
[111,"journal","feuille","revue","article","gazette",4,"Fait partie des autres",34,6,"divers"]
[112,"hibou","bijou","caillou","verrou","genou",4,"prend s au pluriel en non x",35,6,"divers"]
[113,"haie","haricot","hachoir","harnais","hangar",1,"féminin",36,6,"divers"]
[114,"gibier","germe","gabarit","géométrie","gicleur",3,"Le \"g\" se prononce \"gue\" et non \"j\"",37,6,"divers"]
[115,"feuille","brochure","cahier","livre","opuscule",1,"Compose les autres",44,6,"divers"]
[116,"Goncourt","Médicis","Fémina","Lépine","Renaudot",4,"N'est pas un prix littéraire",45,6,"divers"]
[117,"tennis","football","escrime","golf","volley-ball",3,"N'est pas un sport de balle",53,6,"divers"]
[118,"Raymond Weil","Patek Philippe","Omega","Franck Muller","Audemars Piguet",3,"N'est pas une personne physique",71,6,"divers"]
[119,"hache","tuyau","extincteur","lance","échelle",3,"Appareil utile aux pompiers",102,6,"divers"]
[120,"bouteille","boîte","part","pot","paquet",3,"N'est pas un contenant",107,6,"divers"]
[121,"donc","tout","où","qui","dont",1,"N'est pas un pronom, mais une conjonction",108,6,"divers"]
[122,"métro","train","voiture","bus","tram",3,"N'est pas un transport collectif",110,6,"divers"]
[123,"rejet","jeu","rejeter","jeter","jet",2,"N'a pas de jet dans ses racines",114,6,"divers"]
[124,"Matthieu","Pierre","Marc","Jean","Luc ",2,"N'est pas un évangile de la Bible",120,6,"divers"]
[125,"crêpe","meringue","quiche","tiramisu","röstis",5,"N'est pas à base d'œufs",125,6,"divers"]
[126,"Fin",{"$f":"\"\"","v":""},{"$f":"\"\"","v":""},{"$f":"\"\"","v":""},{"$f":"\"\"","v":""}]
[127,"Fin",{"$f":"\"\"","v":""},{"$f":"\"\"","v":""},{"$f":"\"\"","v":""},{"$f":"\"\"","v":""}]